fUSD/lending_fUSD_20250226
["ID","MTS","AMOUNT","RATE_DAILY","PERIOD"]
[354569417,1740577865413,-1878.05,0.0003945,14]
[354569418,1740577865422,-1878.05,0.0003945,14]
[354569419,1740577865433,-2514.2,0.0003945,14]
[354569420,1740577865442,-10590.07,0.0003945,14]
[354569421,1740577865451,-7878.89,0.0003945,14]
[354569422,1740577865461,-2226.1,0.0003945,14]
[354569423,1740577865470,-963.01,0.0003945,14]
[354569424,1740577865480,-1335.47,0.0003945,14]
[354569425,1740577865490,-4068.29,0.0003945,14]
[354569426,1740577865499,-1524.81,0.0003945,14]
[354569427,1740577865508,-3119.68,0.0003945,14]
[354569428,1740577865518,-1042.94,0.0003945,14]
[354569429,1740577865527,-1414.93,0.0003945,14]
[354569430,1740577865536,-4810.19,0.0003945,14]
[354569431,1740577865546,-962.82,0.0003945,14]
[354569432,1740577865555,-3278.03,0.0003945,14]
[354569433,1740577865564,-2165.39,0.0003945,14]
[354569434,1740577865574,-500.0,0.0003945,14]
[354569435,1740577865584,-3365.18,0.0003945,14]
[354569436,1740577865594,-2946.79,0.0003945,14]
[354569437,1740577865604,-1224.1,0.0003945,14]
[354569438,1740577865613,-2232.04,0.0003945,14]
[354569439,1740577865623,-500.0,0.0003945,14]
[354569440,1740577865633,-500.0,0.0003945,14]
[354569441,1740577865643,-2616.03,0.0003945,14]
[354569442,1740577865652,-1658.36,0.0003945,14]
[354569443,1740577865661,-3658.55,0.0003945,14]
[354569444,1740577865671,-1516.09,0.0003945,14]
[354569445,1740577865680,-500.0,0.0003945,14]
[354569446,1740577865689,-781.58,0.0003945,14]
[354569447,1740577865699,-1606.71,0.0003945,14]
[354569448,1740577865709,-2312.99,0.0003945,14]
[354569449,1740577865718,-574.15,0.0003945,14]
[354569450,1740577865727,-500.0,0.0003945,14]
[354569451,1740577865737,-2047.04,0.0003945,14]
[354569452,1740577865747,-2467.14,0.0003945,14]
[354569453,1740577865756,-2266.99,0.0003945,14]
[354569454,1740577865765,-500.0,0.0003945,14]
[354569455,1740577865775,-533720.07655011,0.00039451,42]
[354569456,1740577865784,-502.66089181,0.00039451,14]
[354569457,1740577865794,-303.39120916,0.00039451,14]
[354569458,1740577865806,-402.96296288,0.00039451,14]
[354569459,1740577865816,-500.0,0.00039451,14]
[354569460,1740577865826,-500.0,0.00039451,14]
[354569461,1740577865835,-579.56,0.00039451,14]
[354569462,1740577865844,-500.0,0.00039451,14]
[354569463,1740577865854,-500.0,0.00039451,14]
[354569464,1740577865862,-748.27,0.00039451,14]
[354569465,1740577865873,-508.29,0.00039451,14]
[354569466,1740577865883,-560.37,0.00039451,14]
[354569467,1740577865892,-686.33,0.00039451,14]
[354569468,1740577865902,-500.0,0.00039451,14]
[354569469,1740577865911,-500.0,0.00039451,14]
[354569470,1740577865921,-500.0,0.00039451,14]
[354569471,1740577865930,-625.4,0.00039451,14]
[354569472,1740577865940,-500.0,0.00039451,14]
[354569473,1740577865949,-657.12,0.00039451,14]
[354569474,1740577865959,-798.41,0.00039451,14]
[354569475,1740577865968,-702.9,0.00039451,14]
[354569476,1740577865978,-656.36,0.00039451,14]
[354569477,1740577865987,-500.0,0.00039451,14]
[354569478,1740577865997,-256.8540284,0.00039451,14]
[354569479,1740577866006,-500.0,0.00039451,14]
[354569480,1740577866016,-500.0,0.00039451,14]
[354569481,1740577866025,-500.0,0.00039451,14]
[354569482,1740577866035,-739.71,0.00039451,14]
[354569483,1740577866044,-500.0,0.00039451,14]
[354569484,1740577866053,-652.49,0.00039451,14]
[354569485,1740577866063,-1187.38,0.00039451,14]
[354569486,1740577866072,-500.0,0.00039451,14]
[354569487,1740577866082,-500.0,0.00039451,14]
[354569488,1740577866091,-1152.89,0.00039451,14]
[354569489,1740577866100,-500.0,0.00039451,14]
[354569490,1740577866110,-500.0,0.00039451,14]
[354569491,1740577866119,-500.0,0.00039451,14]
[354569492,1740577866130,-500.0,0.00039451,14]
[354569493,1740577866139,-500.0,0.00039451,14]
[354569494,1740577866149,-519.1,0.00039451,14]
[354569495,1740577866158,-500.0,0.00039451,14]
[354569496,1740577866168,-500.0,0.00039451,14]
[354569497,1740577866177,-1000.36,0.00039451,14]
[354569498,1740577866187,-500.0,0.00039451,14]
[354569499,1740577866196,-1053.89,0.00039451,14]
[354569500,1740577866207,-500.0,0.00039451,14]
[354569501,1740577866217,-500.0,0.00039451,14]
[354569502,1740577866227,-855.35,0.00039451,14]
[354569503,1740577866237,-500.0,0.00039451,14]
[354569504,1740577866246,-1230.63,0.00039451,14]
[354569505,1740577866256,-713.14,0.00039451,14]
[354569506,1740577866266,-1310.18,0.00039451,14]
[354569507,1740577866275,-500.0,0.00039451,14]
[354569508,1740577866285,-500.0,0.00039451,14]
[354569509,1740577866295,-1037.5,0.00039451,14]
[354569510,1740577866304,-525.66,0.00039451,14]
[354569511,1740577866313,-750.54,0.00039451,14]
[354569512,1740577866323,-644.33,0.00039451,14]
[354569513,1740577866333,-500.0,0.00039451,14]
[354569514,1740577866342,-720.23,0.00039451,14]
[354569515,1740577866352,-1469.38,0.00039451,14]
[354569516,1740577866362,-500.0,0.00039451,14]
[354569517,1740577866371,-676.4,0.00039451,14]
[354569518,1740577866382,-552.22,0.00039451,14]
[354569519,1740577866392,-583.07,0.00039451,14]
[354569520,1740577866403,-819.23,0.00039451,14]
[354569521,1740577866413,-1594.23,0.00039451,14]
[354569522,1740577866423,-1290.54,0.00039451,14]
[354569523,1740577866433,-628.18,0.00039451,14]
[354569524,1740577866443,-2041.57,0.00039451,14]
[354569525,1740577866453,-500.0,0.00039451,14]
[354569526,1740577866463,-1272.67,0.00039451,14]
[354569527,1740577866472,-1295.92,0.00039451,14]
[354569528,1740577866482,-530.49,0.00039451,14]
[354569529,1740577866492,-972.66,0.00039451,14]
[354569530,1740577866501,-1146.34,0.00039451,14]
[354569531,1740577866511,-816.62,0.00039451,14]
[354569532,1740577866520,-1266.49,0.00039451,14]
[354569533,1740577866529,-1144.84,0.00039451,14]
[354569534,1740577866539,-500.0,0.00039451,14]
[354569535,1740577866548,-557.37,0.00039451,14]
[354569536,1740577866558,-1296.84,0.00039451,14]
[354569537,1740577866568,-500.0,0.00039451,14]
[354569538,1740577866578,-1002.69,0.00039451,14]
[354569539,1740577866587,-2093.77,0.00039451,14]
[354569540,1740577866597,-513.61,0.00039451,14]
[354569541,1740577866606,-500.0,0.00039451,14]
[354569542,1740577866616,-882.04,0.00039451,14]
[354569543,1740577866704,-709.78,0.00039451,14]
[354569544,1740577866715,-500.0,0.00039451,14]
[354569545,1740577866725,-1026.63,0.00039451,14]
[354569546,1740577866734,-1813.28,0.00039451,14]
[354569547,1740577866743,-500.0,0.00039451,14]
[354569548,1740577866753,-793.37,0.00039451,14]
[354569549,1740577866762,-500.0,0.00039451,14]
[354569550,1740577866772,-2647.49,0.00039451,14]
[354569551,1740577866786,-500.0,0.00039451,14]
[354569552,1740577866795,-1561.93,0.00039451,14]
[354569553,1740577866805,-1324.4,0.00039451,14]
[354569554,1740577866814,-500.0,0.00039451,14]
[354569555,1740577866824,-1361.16,0.00039451,14]
[354569556,1740577866834,-1819.24,0.00039451,14]
[354569557,1740577866843,-1164.04,0.00039451,14]
[354569558,1740577866852,-500.0,0.00039451,14]
[354569559,1740577866863,-1247.26,0.00039451,14]
[354569560,1740577866874,-706.59,0.00039451,14]
[354569561,1740577866884,-872.61,0.00039451,14]
[354569562,1740577866893,-1466.91,0.00039451,14]
[354569563,1740577866903,-2051.37,0.00039451,14]
[354569564,1740577866912,-500.0,0.00039451,14]
[354569565,1740577866922,-1004.19,0.00039451,14]
[354569566,1740577866931,-500.0,0.00039451,14]
[354569567,1740577866941,-1448.97,0.00039451,14]
[354569568,1740577866950,-2295.36,0.00039451,14]
[354569569,1740577866959,-1383.17,0.00039451,14]
[354569570,1740577866968,-790.09,0.00039451,14]
[354569571,1740577866978,-2265.51,0.00039451,14]
[354569572,1740577866987,-1696.99,0.00039451,14]
[354569573,1740577866996,-500.0,0.00039451,14]
[354569574,1740577867006,-632.7,0.00039451,14]
[354569575,1740577867015,-1588.9,0.00039451,14]
[354569576,1740577867024,-970.15,0.00039451,14]
[354569577,1740577867033,-1881.93,0.00039451,14]
[354569578,1740577867043,-1945.87,0.00039451,14]
[354569579,1740577867052,-600.0,0.00039451,14]
[354569580,1740577867061,-1200.84,0.00039451,14]
[354569581,1740577867071,-500.0,0.00039451,14]
[354569582,1740577867081,-500.0,0.00039451,14]
[354569583,1740577867090,-1380.05,0.00039451,14]
[354569584,1740577867099,-1782.98,0.00039451,14]
[354569585,1740577867109,-1222.32,0.00039451,14]
[354569586,1740577867118,-1676.7,0.00039451,14]
[354569587,1740577867129,-500.0,0.00039451,14]
[354569588,1740577867138,-2543.83,0.00039451,14]
[354569589,1740577867148,-500.0,0.00039451,14]
[354569590,1740577867157,-500.0,0.00039451,14]
[354569591,1740577867166,-1391.83,0.00039451,14]
[354569592,1740577867176,-1308.34,0.00039451,14]
[354569593,1740577867185,-1978.98,0.00039451,14]
[354569594,1740577867195,-590.18,0.00039451,14]
[354569595,1740577867204,-1224.14,0.00039451,14]
[354569596,1740577867214,-500.0,0.00039451,14]
[354569597,1740577867223,-1700.34,0.00039451,14]
[354569598,1740577867233,-1065.08,0.00039451,14]
[354569599,1740577867242,-1250.82,0.00039451,14]
[354569600,1740577867252,-4445.12,0.00039451,14]
[354569601,1740577867262,-990.24,0.00039451,14]
[354569602,1740577867271,-2335.36,0.00039451,14]
[354569603,1740577867281,-1603.67,0.00039451,14]
[354569604,1740577867290,-500.0,0.00039451,14]
[354569605,1740577867299,-500.0,0.00039451,14]
[354569606,1740577867310,-2907.33,0.00039451,14]
[354569607,1740577867319,-1249.22,0.00039451,14]
[354569608,1740577867329,-1019.67,0.00039451,14]
[354569609,1740577867338,-500.0,0.00039451,14]
[354569610,1740577867348,-598.56,0.00039451,14]
[354569611,1740577867357,-1840.72,0.00039451,14]
[354569612,1740577867366,-737.47,0.00039451,14]
[354569613,1740577867377,-579.27,0.00039451,14]
[354569614,1740577867386,-2303.31,0.00039451,14]
[354569615,1740577867396,-1284.45,0.00039451,14]
[354569616,1740577867405,-1366.67,0.00039451,14]
[354569617,1740577867415,-500.0,0.00039451,14]
[354569618,1740577867425,-500.0,0.00039451,14]
[354569619,1740577867434,-1658.66,0.00039451,14]
[354569620,1740577867443,-500.0,0.00039451,14]
[354569621,1740577867453,-794.0,0.00039451,14]
[354569622,1740577867462,-597.16975917,0.00039451,14]
[354569623,1740577867471,-1593.92,0.00039451,14]
[354569624,1740577867480,-930.67,0.00039451,14]
[354569625,1740577867490,-500.0,0.00039451,14]
[354569626,1740577867499,-1206.45,0.00039451,14]
[354569627,1740577867508,-500.0,0.00039451,14]
[354569628,1740577867518,-914.28,0.00039451,14]
[354569629,1740577867527,-500.0,0.00039451,14]
[354569630,1740577867537,-2032.83,0.00039451,14]
[354569631,1740577867546,-3215.52,0.00039451,14]
[354569632,1740577867555,-1509.21,0.00039451,14]
[354569633,1740577867565,-556.78,0.00039451,14]
[354569634,1740577867575,-651.66,0.00039451,14]
[354569635,1740577867584,-2070.14,0.00039451,14]
[354569636,1740577867593,-500.0,0.00039451,14]
[354569637,1740577867602,-2067.47,0.00039451,14]
[354569638,1740577867612,-601.01,0.00039451,14]
[354569639,1740577867621,-500.0,0.00039451,14]
[354569640,1740577867631,-931.17,0.00039451,14]
[354569641,1740577867640,-796.36,0.00039451,14]
[354569642,1740577867649,-500.0,0.00039451,14]
[354569643,1740577867659,-878.94,0.00039451,14]
[354569644,1740577867668,-2317.26,0.00039451,14]
[354569645,1740577867678,-811.32,0.00039451,14]
[354569646,1740577867687,-718.91,0.00039451,14]
[354569647,1740577867697,-1354.8,0.00039451,14]
[354569648,1740577867706,-986.02,0.00039451,14]
[354569649,1740577867715,-500.0,0.00039451,14]
[354569650,1740577867724,-4031.87,0.00039451,14]
[354569651,1740577867734,-500.0,0.00039451,14]
[354569652,1740577867743,-568.27,0.00039451,14]
[354569653,1740577867752,-1193.27,0.00039451,14]
[354569654,1740577867762,-500.0,0.00039451,14]
[354569655,1740577867772,-1813.53,0.00039451,14]
[354569656,1740577867782,-621.69,0.00039451,14]
[354569657,1740577867793,-1015.25,0.00039451,14]
[354569658,1740577867806,-500.0,0.00039451,14]
[354569659,1740577867816,-1455.37,0.00039451,14]
[354569660,1740577867825,-1166.6,0.00039451,14]
[354569661,1740577867835,-795.61,0.00039451,14]
[354569662,1740577867845,-722.35,0.00039451,14]
[354569663,1740577867855,-867.92,0.00039451,14]
[354569664,1740577867865,-1830.54,0.00039451,14]
[354569665,1740577867875,-1354.78,0.00039451,14]
[354569666,1740577867885,-725.92,0.00039451,14]
[354569667,1740577867894,-571.25,0.00039451,14]
[354569668,1740577867904,-1378.95,0.00039451,14]
[354569669,1740577867913,-151.0,0.00039451,14]
[354569670,1740577867923,-696.87,0.00039451,14]
[354569671,1740577867932,-801.49,0.00039451,14]
[354569672,1740577867941,-500.0,0.00039451,14]
[354569673,1740577867951,-563.38,0.00039451,14]
[354569674,1740577867960,-755.14,0.00039451,14]
[354569675,1740577867969,-772.08,0.00039451,14]
[354569676,1740577867978,-1769.21,0.00039451,14]
[354569677,1740577867987,-500.0,0.00039451,14]
[354569678,1740577867995,-2728.47,0.00039451,14]
[354569679,1740577868004,-1622.84,0.00039451,14]
[354569680,1740577868013,-820.99,0.00039451,14]
[354569681,1740577868022,-1253.65,0.00039451,14]
[354569682,1740577868032,-1658.28,0.00039451,14]
[354569683,1740577868042,-1544.72,0.00039451,14]
[354569684,1740577868052,-1470.92,0.00039451,14]
[354569685,1740577868061,-500.0,0.00039451,14]
[354569686,1740577868070,-3396.57,0.00039451,14]
[354569687,1740577868079,-1682.13,0.00039451,14]
[354569688,1740577868087,-1634.21,0.00039451,14]
[354569689,1740577868097,-3334.29,0.00039451,14]
[354569690,1740577868106,-500.0,0.00039451,14]
[354569691,1740577868115,-1844.17,0.00039451,14]
[354569692,1740577868123,-500.0,0.00039451,14]
[354569693,1740577868133,-2369.0,0.00039451,14]
[354569694,1740577868142,-500.0,0.00039451,14]
[354569695,1740577868151,-500.0,0.00039451,14]
[354569696,1740577868160,-4171.01,0.00039451,14]
[354569697,1740577868169,-500.0,0.00039451,14]
[354569698,1740577868178,-500.0,0.00039451,14]
[354569699,1740577868188,-500.0,0.00039451,7]
[354569700,1740577868197,-13873.2,0.00039451,14]
[354569701,1740577868206,-603.09,0.00039451,14]
[354569702,1740577868216,-500.0,0.00039451,14]
[354569703,1740577868226,-514.62486217,0.00039451,14]
[354569704,1740577868235,-1000.08,0.00039451,14]
[354569705,1740577868244,-1178.11,0.00039451,14]
[354569706,1740577868254,-194.04890501,0.00039451,14]
[354569707,1740577868263,-500.0,0.00039451,14]
[354569708,1740577868272,-581.84,0.00039451,14]
[354569709,1740577868282,-3163.92,0.00039451,14]
[354569710,1740577868291,-1035.82,0.00039451,14]
[354569711,1740577868300,-502.97157513,0.00039451,14]
[354569712,1740577868310,-510.02,0.00039451,14]
[354569713,1740577868319,-511.51,0.00039451,14]
[354569714,1740577868329,-500.0,0.00039451,14]
[354569715,1740577868338,-3537.7,0.00039451,14]
[354569716,1740577868348,-500.0,0.00039451,14]
[354569717,1740577868357,-1584.97,0.00039451,14]
[354569718,1740577868366,-500.0,0.00039451,14]
[354569719,1740577868377,-883.71,0.00039451,14]
[354569720,1740577868387,-151.0,0.00039451,14]
[354569721,1740577868396,-1742.53,0.00039451,14]
[354569722,1740577868406,-1183.74,0.00039451,14]
[354569723,1740577868416,-500.0,0.00039451,14]
[354569724,1740577868425,-2880.94,0.00039451,14]
[354569725,1740577868435,-2048.33,0.00039451,14]
[354569726,1740577868445,-11387.44,0.00039451,14]
[354569727,1740577868455,-615.59,0.00039451,14]
[354569728,1740577868464,-300.0,0.00039451,14]
[354569729,1740577868474,-916.59,0.00039451,14]
[354569730,1740577868483,-151.349057,0.00039451,14]
[354569731,1740577868492,-1244.24,0.00039451,14]
[354569732,1740577868502,-559.08,0.00039451,14]
[354569733,1740577868511,-546.42,0.00039451,14]
[354569734,1740577868521,-1746.95,0.00039451,14]
[354569735,1740577868530,-1761.75,0.00039451,14]
[354569736,1740577868539,-276.15,0.00039451,14]
[354569737,1740577868549,-538.92,0.00039451,14]
[354569738,1740577868558,-595.5,0.00039451,14]
[354569739,1740577868568,-1217.13,0.00039451,14]
[354569740,1740577868577,-2652.63,0.00039451,14]
[354569741,1740577868586,-2987.07,0.00039451,14]
[354569742,1740577868596,-577.66,0.00039451,14]
[354569743,1740577868605,-500.0,0.00039451,14]
[354569744,1740577868614,-598.47,0.00039451,14]
[354569745,1740577868624,-3341.12,0.00039451,14]
[354569746,1740577868636,-500.0,0.00039451,14]
[354569747,1740577868646,-500.0,0.00039451,14]
[354569748,1740577868655,-500.0,0.00039451,14]
[354569749,1740577868665,-500.0,0.00039451,14]
[354569750,1740577868674,-500.0,0.00039451,14]
[354569751,1740577868683,-2065.94,0.00039451,14]
[354569752,1740577868695,-797.66,0.00039451,14]
[354569753,1740577868705,-1189.81,0.00039451,14]
[354569754,1740577868714,-566.37,0.00039451,14]
[354569755,1740577868723,-500.0,0.00039451,14]
[354569756,1740577868732,-1046.83,0.00039451,14]
[354569757,1740577868741,-500.0,0.00039451,14]
[354569758,1740577868750,-578.47,0.00039451,14]
[354569759,1740577868760,-185.94,0.00039451,14]
[354569760,1740577868769,-500.0,0.00039452,14]
[354569761,1740577868779,-500.0,0.00039452,14]
[354569762,1740577868789,-565.01,0.00039452,14]
[354569763,1740577868802,-648.16,0.00039452,14]
[354569764,1740577868811,-831.81,0.00039452,14]
[354569765,1740577868820,-500.0,0.00039452,14]
[354569766,1740577868830,-1013.83,0.00039452,14]
[354569767,1740577868839,-500.0,0.00039452,14]
[354569768,1740577868848,-500.0,0.00039452,14]
[354569769,1740577868858,-950.36,0.00039452,14]
[354569770,1740577868868,-732.41,0.00039452,14]
[354569771,1740577868879,-950.01,0.00039452,14]
[354569772,1740577868888,-500.0,0.00039452,14]
[354569773,1740577868897,-924.52,0.00039452,14]
[354569774,1740577868907,-632.95,0.00039452,14]
[354569775,1740577868916,-500.0,0.00039452,14]
[354569776,1740577868925,-766.77,0.00039452,14]
[354569777,1740577868935,-500.0,0.00039452,14]
[354569778,1740577868944,-477.03826746,0.00039452,14]
[354569779,1740577868953,-545.50283685,0.00039452,14]
[354569780,1740577868963,-1251.19,0.00039452,14]
[354569781,1740577868972,-500.0,0.00039452,14]
[354569782,1740577868982,-3553.83,0.00039452,14]
[354569783,1740577868991,-1452.5,0.00039452,14]
[354569784,1740577869000,-3541.32,0.00039452,14]
[354569785,1740577869010,-3686.64,0.00039452,14]
[354569786,1740577869020,-1345.95,0.00039452,14]
[354569787,1740577869029,-510.79,0.00039452,14]
[354569788,1740577869039,-501.44812467,0.00039473,5]
[354569789,1740577869048,-4656.35266776,0.00039534,2]
[354569790,1740577869057,-240.56,0.00039549,120]
[354569791,1740577869067,-357.2539389,0.00039625,13]
[354569792,1740577869076,-194.91592201,0.00039626,2]
[354569793,1740577869085,-500.0,0.00039651,2]
[354569794,1740577869095,-500.0,0.00039651,2]
[354569795,1740577869104,-500.0,0.00039651,2]
[354569796,1740577869113,-500.0,0.00039651,2]
[354569797,1740577869123,-500.0,0.00039651,2]
[354569798,1740577869133,-500.0,0.00039651,2]
[354569799,1740577869142,-310.01422721,0.00039651,2]
[354569800,1740577869151,-4656.35266776,0.00039716,2]
[354569801,1740577869160,-500.0,0.00039723,14]
[354569802,1740577869170,-500.0,0.00039723,14]
[354569803,1740577869180,-500.0,0.00039723,14]
[354569804,1740577869190,-760.91,0.00039723,14]
[354569805,1740577869199,-958.67,0.00039723,14]
[354569806,1740577869209,-500.0,0.00039723,14]
[354569807,1740577869218,-598.80911904,0.00039723,14]
[354569808,1740577869227,-928.51,0.00039723,14]
[354569809,1740577869237,-500.0,0.00039723,14]
[354569810,1740577869246,-664.15,0.00039723,14]
[354569811,1740577869263,-500.0,0.00039723,14]
[354569812,1740577869273,-500.0,0.00039723,14]
[354569813,1740577869282,-500.0,0.00039723,14]
[354569814,1740577869292,-500.0,0.00039723,14]
[354569815,1740577869301,-500.0,0.00039723,14]
[354569816,1740577869311,-685.06,0.00039723,14]
[354569817,1740577869320,-1165.71,0.00039723,14]
[354569818,1740577869330,-500.0,0.00039723,14]
[354569819,1740577869340,-860.05,0.00039723,14]
[354569820,1740577869349,-500.0,0.00039723,14]
[354569821,1740577869359,-1547.06,0.00039723,14]
[354569822,1740577869369,-554.12,0.00039723,14]
[354569823,1740577869378,-500.0,0.00039723,14]
[354569824,1740577869388,-500.0,0.00039723,14]
[354569825,1740577869397,-500.0,0.00039723,14]
[354569826,1740577869408,-570.0,0.00039723,14]
[354569827,1740577869417,-1158.16,0.00039723,14]
[354569828,1740577869426,-626.17,0.00039723,14]
[354569829,1740577869435,-952.68,0.00039723,14]
[354569830,1740577869445,-508.1,0.00039723,14]
[354569831,1740577869455,-968.8,0.00039723,14]
[354569832,1740577869465,-2419.29,0.00039723,14]
[354569833,1740577869475,-500.0,0.00039723,14]
[354569834,1740577869485,-1719.14,0.00039723,14]
[354569835,1740577869495,-500.0,0.00039723,14]
[354569836,1740577869505,-682.591872,0.00039723,14]
[354569837,1740577869514,-500.0,0.00039723,14]
[354569838,1740577869523,-500.0,0.00039723,14]
[354569839,1740577869533,-500.0,0.00039723,14]
[354569840,1740577869542,-1795.0,0.00039723,14]
[354569841,1740577869552,-500.0,0.00039723,14]
[354569842,1740577869562,-1645.33012,0.00039723,14]
[354569843,1740577869572,-714.11,0.00039723,14]
[354569844,1740577869582,-1111.56,0.00039723,14]
[354569845,1740577869592,-500.0,0.00039723,14]
[354569846,1740577869603,-1878.05,0.00039723,14]
[354569847,1740577869612,-500.0,0.00039723,14]
[354569848,1740577869622,-667.63,0.00039723,14]
[354569849,1740577869633,-500.0,0.00039723,14]
[354569850,1740577869642,-2722.32,0.00039723,14]
[354569851,1740577869652,-7145.37,0.00039723,14]
[354569852,1740577869662,-1927.34,0.00039723,14]
[354569853,1740577869671,-1008.2,0.00039723,14]
[354569854,1740577869681,-650.25,0.00039723,14]
[354569855,1740577869691,-2009.61,0.00039723,14]
[354569856,1740577869704,-2014.66,0.00039723,14]
[354569857,1740577869714,-3098.29,0.00039723,14]
[354569858,1740577869724,-732.93,0.00039723,14]
[354569859,1740577869734,-327.12689655,0.00039723,14]
[354569860,1740577869744,-938.98,0.00039723,14]
[354569861,1740577869754,-1479.36,0.00039723,14]
[354569862,1740577869764,-3568.1,0.00039723,14]
[354569863,1740577869774,-669.26,0.00039723,14]
[354569864,1740577869789,-3257.25,0.00039723,14]
[354569865,1740577869799,-645.47,0.00039723,14]
[354569866,1740577869811,-3076.86,0.00039723,14]
[354569867,1740577869829,-1253.24,0.00039723,14]
[354569868,1740577869838,-2384.03,0.00039723,14]
[354569869,1740577869848,-500.0,0.00039723,14]
[354569870,1740577869858,-500.0,0.00039723,14]
[354569871,1740577869869,-1151.84,0.00039723,14]
[354569872,1740577869879,-1460.66,0.00039723,14]
[354569873,1740577869888,-6184.91,0.00039723,14]
[354569874,1740577869898,-500.0,0.00039723,14]
[354569875,1740577869908,-771.66,0.00039723,14]
[354569876,1740577869917,-2808.99,0.00039723,14]
[354569877,1740577869927,-827.66,0.00039723,14]
[354569878,1740577869937,-3678.19,0.00039723,14]
[354569879,1740577869946,-500.0,0.00039723,14]
[354569880,1740577869956,-1437.84,0.00039723,14]
[354569881,1740577869966,-5109.15,0.00039723,14]
[354569882,1740577869976,-1209.32,0.00039723,14]
[354569883,1740577869986,-503.32300921,0.00039723,14]
[354569884,1740577869996,-500.0,0.00039723,14]
[354569885,1740577870006,-2632.15,0.00039723,14]
[354569886,1740577870015,-500.0,0.00039723,14]
[354569887,1740577870025,-10651.32,0.00039723,14]
[354569888,1740577870035,-839.0,0.00039723,14]
[354569889,1740577870045,-500.0,0.00039723,14]
[354569890,1740577870055,-846.37,0.00039723,14]
[354569891,1740577870064,-700.95,0.00039723,14]
[354569892,1740577870074,-908.08,0.00039723,14]
[354569893,1740577870086,-3314.37,0.00039723,14]
[354569894,1740577870098,-500.0,0.00039723,14]
[354569895,1740577870108,-810.55,0.00039723,14]
[354569896,1740577870117,-684.23,0.00039723,14]
[354569897,1740577870128,-758.03,0.00039723,14]
[354569898,1740577870138,-1616.56,0.00039723,14]
[354569899,1740577870148,-1561.92,0.00039723,14]
[354569900,1740577870158,-1729.62,0.00039723,14]
[354569901,1740577870168,-4702.59,0.00039723,14]
[354569902,1740577870178,-548.15,0.00039723,14]
[354569903,1740577870188,-718.01,0.00039723,14]
[354569904,1740577870198,-500.0,0.00039723,14]
[354569905,1740577870207,-564.41,0.00039723,14]
[354569906,1740577870217,-500.0,0.00039723,14]
[354569907,1740577870227,-658.16,0.00039723,14]
[354569908,1740577870237,-1453.01,0.00039723,14]
[354569909,1740577870247,-4330.92,0.00039723,14]
[354569910,1740577870257,-1268.8,0.00039723,14]
[354569911,1740577870267,-1276.19,0.00039723,14]
[354569912,1740577870276,-2279.27,0.00039723,14]
[354569913,1740577870285,-1730.63,0.00039723,14]
[354569914,1740577870295,-500.0,0.00039723,14]
[354569915,1740577870305,-510.43064263,0.00039723,14]
[354569916,1740577870314,-715.74,0.00039723,14]